{"text_format":"1","workbook":"xlsx","n_sheets":5,"sheets":["Berechnung","Kommentar","Eig.Berechnungen 1","Eig.Berechnungen 2","Deckblatt"],"not_rendered":{"charts":0,"images":0,"macros":0,"external_links":0,"defined_names":0,"comments":0,"pivot_tables":0},"unopened":[],"bounds":{"document_bytes":16777216,"sheet_cells":100000,"rows_first":2000,"rows_last":500,"rows_between":2000,"halvings":0,"cell_chars":16384,"cell_head_chars":4096},"cells_cut":0,"cells_raw":0,"read":"whole","date_system":"1900"}

{"sheet":"Berechnung","index":0,"n_rows":89,"n_cols":9,"rows_kept":89,"cut":false,"hidden":false,"merged":[[4,4,4,6],[5,4,5,6]]}
[]
[null,"MI Management und Informatik AG",null,null,null,null,"Berechnungsdatum:",null,{"$f":"TODAY()","v":"2023-12-08"}]
[null,"Version 1.2"]
[]
[null,"Vorsorgecheck für",null,null,"Fritz und Maria Muster",null,null," Partner 1:","Will sich vorzeitig pensionieren lassen"]
[null,null,null,null,"4000 Beispiel",null,null,"Partner 2:","z.B. Lebenspartner"]
[]
[null,"Angaben zu Partner 1: "]
[null,null,null,null,null,null,"Jahre","Monate"]
[null,"Aktuelles Alter",null,null,null,null,52,6,{"$f":"G10+H10/12","v":52.5}]
[null,"Ordentliche Pensionierung im Alter",null,null,null,"Ganze Jahre",65]
[null,"Vorzeitige Pensionierung im Alter",null,null,null,null,62,0,{"$f":"G11-(G12+H12/12)","v":3}]
[null,"Individuelle Lebenserwartung",null,null,null,"Ganze Jahre",95,null,{"$f":"IF(G13<=(G11-I12),0,MIN(G11-I10,I12,G13-I10,G13-(G11-I12)))","v":3}]
[null,"Zinssatz bzw. Rendite des Kapitalstocks ",null,null,null,"%",1]
[]
[null,null,null,null,null,null,"Beträge nach","Beträge vor"]
[null,null,null,null,null,null,"ordentl. ","ordentl. "]
[null,null,null,null,null,null,"Pensionierung: ","Pensionierung:"]
[]
[null,"Gewünschtes Gesamt-Einkommen im Alter",null,null,null,"pro Jahr",84000,84000]
[]
[null,"Staatl. Altersrente (AHV) (Schweiz z.Zt.: min. 14'700, max. 29'400)"]
[null,null,"Partner 1","Jahresrente",null,null,29400,0]
[null,null,"Partner 2","Jahresrente",null,null,14700,1000]
[]
[null,"Pensionskassen-Rente (siehe persönlicher Ausweis und Reduktion gemäss Reglement)"]
[null,null,"Partner 1","Basisrente pro Jahr",null,24000]
[null,null,null,"Kaderrente pro Jahr",null,6000,{"$f":"(F27+F28)","v":30000},{"$f":"IF(I13>0,F27+F28,0)","v":30000}]
[]
[null,null,"Partner 2","Basisrente pro Jahr",null,3000]
[null,null,null,"Kaderrente pro Jahr",null,0,{"$f":"(F30+F31)","v":3000}]
[]
[null,"Private Leibrente"]
[null,null,"Partner 1","Jahresrente",null,null,1000]
[null,null,"Partner 2","Jahresrente"]
[]
[null,"Renten-Total",null,"pro Jahr",null,null,{"$f":"SUM(G23,G24,G28,G31,G34,G35)","v":78100},{"$f":"SUM(H23,H24,H28,H30,H31,H34,H35)","v":31000}]
[]
[null,"Differenz zum gewünschten Einkommen",null,null,null,null,{"$f":"G20-G37","v":5900},{"$f":"H20-H37","v":53000}]
[]
[null,"Notwendiger Kapitalstock zur Finanzierung bis Lebensende (unverzinst)",null,null,null,null,{"$f":"IF(G13<=I10,0,IF(G13<=G11,0,G39*(G13-MAX(I10,G11))))","v":177000},{"$f":"IF(I13<=0,0,H39*I13)","v":159000}]
[null,"Notwendiger Kapitalstock zur Finanzierung bis Lebensende (verzinst)",null,null,null,null,{"$f":"PV(G14/100,IF(G13<=I10,0,IF(G13<=G11,0,G13-MAX(I10,G11))),-G39,0,1)","v":153788.13329065283},{"$f":"IF(I13<=0,0,PV(G14/100,I13,-H39,0,1))","v":157430.93814331884}]
[]
[null,"Nebeneinkommen nach vorzeitiger"]
[null,"                  Pensionierung (kapitalisiert)",null,null,null,null,null,30000]
[]
[null,"Vermögenswerte",null,null,"Betrag","Zinssatz bis",null,null,"Davon verfügbar vor"]
[null,"Partner 1",null,null,"heute","ord. Pensionierung",null,null,"ordentl. Pensionierung"]
[null,"Kapital aus Pensionskasse",null,null,20000,1.75,"%",null,20000]
[null,"Freizügigkeitskapital",null,null,null,null,"%"]
[null,"Kapital Gebundene Vorsorge",null,null,100000,0.75,"%",null,100000]
[null,"Kapital Gebundene Lebensversicherung",null,null,null,null,"%"]
[null,"Kapital Freie Lebensversicherung",null,null,50000,null,"%"]
[null,"Sparkapital",null,null,50000,0.5,"%"]
[null,"Obligationen",null,null,null,null,"%"]
[null,"Aktien",null,null,2000,2,"%"]
[null,"Andere Vermögenswerte",null,null,3000,0.5,"%"]
[null,"./. Hypothekarschulden",null,null,100000,null,null,"./."]
[null,"./. Andere Schulden",null,null,null,null,{"$f":"IF(I10>=G11,E49,FV(F49/100,G11-I10,0,-E49))-IF(I13<=0,0,(FV(F49/100,I13,0,-I49)-I49)/2)+IF(I10>=G11,E50,FV(F50/100,G11-I10,0,-E50))-IF(I13<=0,0,(FV(F50/100,I13,0,-I50)-I50)/2)+IF(I10>=G11,E51,FV(F51/100,G11-I10,0,-E51))-IF(I13<=0,0,(FV(F51/100,I13,0,-I51)-I51)/2)+IF(I10>=G11,E52,FV(F52/100,G11-I10,0,-E52))-IF(I13<=0,0,(FV(F52/100,I13,0,-I52)-I52)/2)+IF(I10>=G11,E53,FV(F53/100,G11-I10,0,-E53))-IF(I13<=0,0,(FV(F53/100,I13,0,-I53)-I53)/2)+IF(I10>=G11,E54,FV(F54/100,G11-I10,0,-E54))-IF(I13<=0,0,(FV(F54/100,I13,0,-I54)-I54)/2)+IF(I10>=G11,E55,FV(F55/100,G11-I10,0,-E55))-IF(I13<=0,0,(FV(F55/100,I13,0,-I55)-I55)/2)+IF(I10>=G11,E56,FV(F56/100,G11-I10,0,-E56))-IF(I13<=0,0,(FV(F56/100,I13,0,-I56)-I56)/2)+IF(I10>=G11,E57,FV(F57/100,G11-I10,0,-E57))-IF(I13<=0,0,(FV(F57/100,I13,0,-I57)-I57)/2)-E58-E59","v":141936.89876286912},"./."]
[]
[null,"Partner 2"]
[null,"Kapital aus Pensionskasse",null,null,null,null,"%"]
[null,"Freizügigkeitskapital",null,null,30000,0.75,"%"]
[null,"Kapital Gebundene Vorsorge",null,null,null,null,"%"]
[null,"Kapital Gebundene Lebensversicherung",null,null,30000,null,"%"]
[null,"Kapital Freie Lebensversicherung",null,null,null,null,"%"]
[null,"Sparkapital",null,null,10000,0.5,"%"]
[null,"Obligationen",null,null,10000,null,"%"]
[null,"Aktien",null,null,null,null,"%"]
[null,"Andere Vermögenswerte",null,null,null,null,"%"]
[null,"./. Hypothekarschulden",null,null,null,null,null,"./."]
[null,"./. Andere Schulden",null,null,null,null,{"$f":"IF(I10>=G11,E62,FV(F62/100,G11-I10,0,-E62))-IF(I13<=0,0,(FV(F62/100,I13,0,-I62)-I62)/2)+IF(I10>=G11,E63,FV(F63/100,G11-I10,0,-E63))-IF(I13<=0,0,(FV(F63/100,I13,0,-I63)-I63)/2)+IF(I10>=G11,E64,FV(F64/100,G11-I10,0,-E64))-IF(I13<=0,0,(FV(F64/100,I13,0,-I64)-I64)/2)+IF(I10>=G11,E65,FV(F65/100,G11-I10,0,-E65))-IF(I13<=0,0,(FV(F65/100,I13,0,-I65)-I65)/2)+IF(I10>=G11,E66,FV(F66/100,G11-I10,0,-E66))-IF(I13<=0,0,(FV(F66/100,I13,0,-I66)-I66)/2)+IF(I10>=G11,E67,FV(F67/100,G11-I10,0,-E67))-IF(I13<=0,0,(FV(F67/100,I13,0,-I67)-I67)/2)+IF(I10>=G11,E68,FV(F68/100,G11-I10,0,-E68))-IF(I13<=0,0,(FV(F68/100,I13,0,-I68)-I68)/2)+IF(I10>=G11,E69,FV(F69/100,G11-I10,0,-E69))-IF(I13<=0,0,(FV(F69/100,I13,0,-I69)-I69)/2)+IF(I10>=G11,E70,FV(F70/100,G11-I10,0,-E70))-IF(I13<=0,0,(FV(F70/100,I13,0,-I70)-I70)/2)-E71-E72","v":83580.3173116041},"./."]
[]
[null,null,"Finanzierung vorzeitige Pensionierung",null,null,null,{"$f":"-H74","v":-127430.93814331884},{"$f":"IF(H42=0,0,H42-H45)","v":127430.93814331884}]
[]
[null,"Total Vermögenswerte - Verwendung nach ordentl. Pensionierung",null,null,null,null,{"$f":"SUM(G45,G59,G72,G74)","v":98086.277931154385}]
[null,null,"                      - für Finanzierung der vorzeitigen Pensionierung",null,null,null,null,{"$f":"H74","v":127430.93814331884},{"$f":"SUM(I49:I57)-I58-I59+SUM(I62:I70)-I71-I72","v":120000}]
[]
[null,"Zusätzlicher Verbrauch pro Jahr",null,null,null,null,{"$f":"IF(G42=0,0,(G76-G42)/IF(I10>G11,G13-I10,G13-G11))","v":-1856.7285119832814},0]
[]
[null,"Verfügbares Einkommen pro Jahr",null,null,null,null,{"$f":"IF(G13<=I10,0,IF(G13<=G11,0,G20+G79))","v":82143.271488016719},{"$f":"IF(I13>0,H37+(H41-H45)/I13+H45/I13,0)","v":84000}]
[]
[null,"Erforderlicher Sparbetrag  -  pro Jahr",null,null,null,null,{"$f":"IF(G13<=I10,0,PMT(G14/100,ROUND(IF(G11-IF(I13>0,I13,0)-I10>=2,G11-IF(I13>0,I13,0)-I10,0),0),0,-(G42-G76),0))","v":5324.0990030138546},{"$f":"IF(G13<=I10,0,ROUND(IF(G11-IF(I13>0,I13,0)-I10>=2,G11-IF(I13>0,I13,0)-I10,0),0))","v":10}," Raten"]
[null,"                                             -  einmalig",null,null,null,null,{"$f":"IF(G13<=I10,0,IF(MIN(G11,G13)-I13-I10<2,G42-G76,0))","v":0}]
[]
[null,"Wenn das Resultat negativ ist, dann haben Sie Ihr Einkommensziel für das Alter schon erreicht!"]
[]
[]
[null,"Copyright © 2000 by MI AG",null,"Stand 1.1.2024"]

{"sheet":"Kommentar","index":1,"n_rows":157,"n_cols":9,"rows_kept":157,"cut":false,"hidden":false,"merged":[]}
[]
[null,"MI Management und Informatik AG",null,null,null,null,null,null,"Version 1.2"]
[]
[]
[]
[null,"Erläuterungen Vorsorgecheck"]
[]
[]
[null,"Das Programm Vorsorgecheck berechnet den erforderlichen jährlichen, individuell zu erbringenden Sparbetrag"]
[null,"zur Finanzierung einer vorzeitigen Pensionierung.   "]
[]
[null,"Einzugeben ist das aktuelle Alter, sowie das Alter, in dem die ordentliche Pensionierung erfolgen würde, und"]
[null,"das Alter der vorzeitigen Pensionierung. "]
[]
[null,"Wichtig ist die Eingabe der individuellen Lebenserwartung. Sie dient zur Berechnung des eventuell not-"]
[null,"wendigen Vermögensverzehrs während der Pensionierungszeit. Sie soll nicht zu tief angesetzt werden, damit"]
[null,"das Vermögen nicht zu früh aufgebraucht sein wird."]
[]
[null,"Zu erfassen sind alle Renteneinkommen, die erwartete Summe des Einkommens nach der vorzeitigen oder "]
[null,"nach der Zeit der ordentlichen Pensionierung und das vorhandene Vermögen. "]
[]
[null,"Die Berechnung kann auch nach bereits erfolgter vorzeitiger Pensionierung, oder nach der ordentlichen"]
[null,"Pensionierung gemacht werden. Der dann ausgewiesene \" Erforderliche Sparbetrag   - einmalig\", zeigt in"]
[null,"diesem Fall, ob das vorgegebene Einkommensziel übertroffen (= negativer Sparbetrag) oder, ob zusätzliche"]
[null,"Mittel zur Finanzierung des Einkommensziels erforderlich wären (= positiver Sparbetrag)."]
[]
[]
[null,"Partner 1",null,null,"Person, die sich vorzeitig pensionieren lassen will, oder bereits"]
[null,null,null,null,"pensioniert ist"]
[]
[]
[null,"Partner 2",null,null,"Soweit das Renteneinkommen und das Vermögen des Ehepartners"]
[null,null,null,null,"oder z.B.des Konkubinatspartners zur Finanzierung des Ein-"]
[null,null,null,null,"kommens nach der Pensionierung beiträgt (gemeinsamer Haushalt),"]
[null,null,null,null,"ist dieses entsprechend anzugeben"]
[null,null,null,null,"Die Berechnung kann auch aus Sicht des Partners 2 gemacht"]
[null,null,null,null,"werden, oder es kann die erwartete Lebensdauer des Partners 2 in"]
[null,null,null,null,"der Berechnung des Partners 1 berücksichtigt werden (d.h. es ist"]
[null,null,null,null,"die Dauer des Partners mit der längeren Lebenserwartung"]
[null,null,null,null,"einzusetzen)"]
[]
[]
[null,"Individuelle Lebenserwartung",null,null,"Nach Ihrer eigenen Einschätzung. Nicht zu tief angeben, so dass bei"]
[null,null,null,null,"der Berechnung des Kapitalbedarfs zur Finanzierung des Ein-"]
[null,null,null,null,"kommens nach der Pensionierung eine gewisse Reserve resultiert. "]
[]
[null,null,null,null,"Hier können Sie Ihre Lebenserwartung berechnen:"]
[null,null,null,null,"http://www.gesundheit.ch/test"]
[]
[]
[null,"Zinssatz des Kapitalstocks",null,null,"Durchschnittlicher Nettoertrag aus dem Kapitalstock nach Abzug"]
[null,null,null,null,"der Steuern nach der ordentlichen Pensionierung. Die Netto-"]
[null,null,null,null,"performance bei Wertschriften-Anlagen ist entsprechend ihrem "]
[null,null,null,null,"Anteil am Gesamtvermögen gewichtet einzurechnen"]
[]
[]
[null,"AHV-Rente",null,null,"Setzen Sie Ihre voraussichtliche AHV-Rente ein, bzw. wenn schon"]
[null,null,null,null,"pensioniert, Ihre aktuelle AHV-Rente"]
[]
[null,null,null,null,"Schweiz: Die ordentliche maximale AHV-Rente wird erreicht, wenn"]
[null,null,null,null,"das mit dem Rentenindex aufgewertete durchschnittliche Jahres-"]
[null,null,null,null,"einkommen zur Zeit CHF 85'320 erreicht und wenn Beiträge während"]
[null,null,null,null,"der gleichen Anzahl Jahre wie der Jahrgang des Anspruchs-"]
[null,null,null,null,"berechtigten einbezahlt wurden. Die maximale AHV-Rente beträgt"]
[null,null,null,null,"CHF 28'440, die minimale AHV-Rente beträgt CHF 14'220, die"]
[null,null,null,null,"maximale Ehepaarrente beträgt CHF 42'660 (Stand 1.1.2019)"]
[]
[null,null,null,null,"Wenn Ihr durchschnittliches aufgewertetes AHV-Einkommen unter"]
[null,null,null,null,"CHF 85'320 liegen wird, machen Sie eine Schätzung Ihrer voraus-"]
[null,null,null,null,"sichtlichen AHV-Rentenhöhe, z.B. bei"]
[null,null,null,null,"AHV-ESCAL ","http://acor-avs.ch"]
[]
[null,null,null,null,"Deutschland und andere Länder: Für die Berechnung der Altersrente"]
[null,null,null,null,"suchen Sie ein geeignetes Programm im Internet."]
[]
[]
[]
[]
[]
[]
[]
[null,"Pensionskassen-Rente",null,null,"Die im persönlichen Ausweis vorgesehene Pensionskassen-Rente"]
[null,null,null,null,"wird bei einer vorzeitigen Pensionierung meist gekürzt. Der Kür-"]
[null,null,null,null,"zungsfaktor ist im Reglement aufgeführt. Eine eventuelle Übergangs-"]
[null,null,null,null,"rente der Pensionskasse ist unter der AHV-Rente zu erfassen"]
[]
[]
[null,"Zinssatz bis ordentliche Pensionierung"]
[null,null,null,null,"Wie Zinssatz des Kapitalstocks (siehe oben), jedoch für jede"]
[null,null,null,null,"Kapitalanlage separat"]
[]
[null,null,null,null,"Bei Lebensversicherungen ist die Erlebensfallsumme und der bereits"]
[null,null,null,null,"gutgeschriebene Bonusbetrag bzw. Zinsgewinn einzusetzen"]
[null,null,null,null,"Zinssatz = erwarteter Bonus oder Zinsgewinn pro künftiges Jahr"]
[]
[]
[null,"Vermögenswerte",null,null,"Vermögensteile einsetzen, die zur Finanzierung des Einkommens-"]
[null,null,null,null,"zieles während der Zeit der vorzeitigen und nach der ordentlichen"]
[null,null,null,null,"Pensionierung verwendet werden können"]
[]
[]
[null,"Hypothekarschulden",null,null,"Werden als Vermögensminderung gerechnet"]
[null,"und",null,null,"Der Zins wird jedoch vor der vorzeitigen Pensionierung aus dem "]
[null,"andere Schulden",null,null,"laufenden Einkommen bezahlt. Er wird somit hier nicht"]
[null,null,null,null,"berücksichtigt"]
[]
[]
[null,"Davon verfügbar vor ordentlicher",null,null,"Einsetzen, was zwecks Finanzierung der vorzeitigen Pensionierung"]
[null,"Pensionierung",null,null,"vorher bezogen werden kann. Der Zinsertrag der betr. Kapitalanlage"]
[null,null,null,null,"wird um den halben Zins des Vorbezugs reduziert, d.h. es ist der"]
[null,null,null,null,"nur halbe Zinssatz zu setzen"]
[]
[]
[null,"Verwendung nach ordentlicher",null,null,"Vermögensteil, der für die Finanzierung des Einkommens nach der"]
[null,"Pensionierung",null,null,"ordentlichen Pensionierung erforderlich ist."]
[]
[]
[null,"Finanzierung der vorzeitigen",null,null,"Vermögensteil, der für die Finanzierung der vorzeitigen"]
[null,"Pensionierung",null,null,"Pensionierung erforderlich ist"]
[]
[]
[null,"Zusätzlicher Verbrauch pro Jahr",null,null,"Die eingegebene Einkommens- und Vermögenssituation bewirkt "]
[null,null,null,null,"diesen zusätzlichen Verbrauch pro Jahr (positiv = das erforderliche"]
[null,null,null,null,"Einkommen wird um diesen Betrag übertroffen, negativ = das"]
[null,null,null,null,"erforderliche Einkommen wird um diesen Betrag unterschritten,"]
[null,null,null,null,"siehe Erforderlicher Sparbetrag)"]
[]
[]
[null,"Verfügbares Einkommen pro Jahr",null,null,"Die eingegebene Einkommens- und Vermögenssituation bewirkt "]
[null,null,null,null,"dieses verfügbare Einkommen pro Jahr = Summe aus dem Renten-"]
[null,null,null,null,"einkommen und dem zusätzlichen Verbrauch pro Jahr aus dem"]
[null,null,null,null,"Vermögen"]
[]
[]
[null,"Erforderlicher Sparbetrag - pro Jahr",null,null,"Jahrlicher Sparbetrag zur Finanzierung der vorzeitigen Pensionierung"]
[null,null,null,null,"(Annuität); zu erbringen bis zum Ende des letzten Jahres vor der"]
[null,null,null,null,"vorzeitigen Pensionierung (individuell zu erbringender Sparbetrag,"]
[null,null,null,null,"ohne Beiträge in die Pensionskasse)"]
[null,null,null,null,"Mit \"Zinssatz Kapitalstock\" gerechnet"]
[null,null,null,null,"Wenn negativ: Vorzeitige Pensionierung ist bereits finanziert, d.h."]
[null,null,null,null,"es könnte ein jährlicher Vermögensabbau in dieser Höhe erfolgen"]
[null,null,null,null,"ohne die Finanzierung der vorzeitigen Pensionierung zu gefährden "]
[]
[]
[null,"Erforderlicher Sparbetrag - einmalig",null,null,"Einmalig zu erbringende Investition zur Finanzierung der bereits"]
[null,null,null,null,"laufenden vorzeitigen oder ordentlichen Pensionierungsphase"]
[null,null,null,null,"Wenn negativ: Vorzeitige und ordentliche Pensionierung ist bereits"]
[null,null,null,null,"finanziert, d.h. es könnte ein Vermögensabbau in dieser Höhe"]
[null,null,null,null,"erfolgen ohne die Finanzierung der vorzeitigen und/oder ordentlichen"]
[null,null,null,null,"Pensionierung zu gefährden "]
[]
[]
[]
[]
[]
[]
[null,"Copyright © 2000 by MI AG",null,"Stand 1.1.2019"]

{"sheet":"Eig.Berechnungen 1","index":2,"n_rows":4,"n_cols":2,"rows_kept":4,"cut":false,"hidden":false,"merged":[]}
[]
[null,"Diese Seite ist nicht gesperrt"]
[]
[null,"Hier können Sie eigene Bereechnungen zu Ihrem Vorsorgecheck durchführen"]

{"sheet":"Eig.Berechnungen 2","index":3,"n_rows":4,"n_cols":2,"rows_kept":4,"cut":false,"hidden":false,"merged":[]}
[]
[null,"Diese Seite ist nicht gesperrt"]
[]
[null,"Hier können Sie eigene Bereechnungen zu Ihrem Vorsorgecheck durchführen"]

{"sheet":"Deckblatt","index":4,"n_rows":36,"n_cols":6,"rows_kept":36,"cut":false,"hidden":false,"merged":[]}
[]
[]
[]
[]
[]
[]
[]
[]
[]
[]
[]
[]
[]
[null,null,null,null,"V o r s o r g e c h e c k         "]
[]
[]
[]
[]
[]
[]
[]
[]
[]
[]
[]
[null,null,null,null,"Dokumentation"]
[]
[]
[]
[]
[]
[]
[]
[]
[]
[null,null,{"$f":"TODAY()","v":"2023-12-08"},null,null,"www.miag.ch"]